fUSD/lending_fUSD_20250804
["ID","MTS","AMOUNT","RATE_DAILY","PERIOD"]
[377222681,1754303440306,-1000.0,0.00025227,2]
[377222683,1754303440316,-361.76047926,0.00025227,2]
[377222685,1754303440325,-598.47354532,0.00025227,2]
[377222687,1754303440335,-1000.0,0.00025227,2]
[377222688,1754303440345,-1082.25482019,0.00025227,2]
[377222689,1754303440355,-920.58354343,0.00025236,2]
[377222690,1754303440365,-1500.0,0.00025258,2]
[377222691,1754303440374,-259.66872081,0.00025258,2]
[377222692,1754303440384,-1500.0,0.00025258,2]
[377222693,1754303440394,-505.82447395,0.00025258,2]
[377222694,1754303440404,-9509.66163532,0.00025417,13]
[377222695,1754303440414,-1429.2144759,0.00025445,2]
[377222696,1754303440424,-4000.0,0.0002565,4]
[377222698,1754303440434,-655.79867695,0.00025774,2]
[377222700,1754303440444,-1500.0,0.00025774,2]
[377222702,1754303440453,-1064.97682582,0.00025774,2]
[377222704,1754303440463,-1500.0,0.00025774,2]
[377222706,1754303440472,-2000.0,0.00025806,2]
[377222708,1754303440482,-1504.6690318,0.00025806,2]
[377222710,1754303440492,-312.69,0.00025978,7]
[377222712,1754303440502,-2851.08576389,0.00026,7]
[377222714,1754303440511,-841.59890878,0.00026,7]
[377222716,1754303440521,-1316.46363575,0.00026,2]
[377222718,1754303440531,-920.58354343,0.00026024,2]
[377222720,1754303440541,-513.90974954,0.00026036,2]
[377222722,1754303440554,-150.94,0.00026097,2]
[377222724,1754303440564,-9509.66163532,0.00026107,14]
[377222726,1754303440573,-250.0,0.00026294,2]
[377222728,1754303440583,-2000.0,0.00026322,2]
[377222730,1754303440594,-2000.0,0.00026322,2]
[377222732,1754303440604,-1001.79481161,0.00026354,2]
[377222734,1754303440615,-151.0,0.00026451,2]
[377222736,1754303440625,-218.66,0.00026676,2]
[377222738,1754303440635,-9509.66163532,0.00026797,15]
[377222740,1754303440644,-920.58354343,0.00026811,2]
[377222742,1754303440653,-602.68369718,0.0002687,2]
[377222744,1754303440663,-2500.0,0.0002687,2]
[377222746,1754303440673,-546.51376466,0.00027,2]
[377222748,1754303440683,-4126.0,0.00027344,2]
[377222750,1754303440692,-500.0,0.00027397,2]
[377222752,1754303440702,-500.0,0.00027397,2]
[377222754,1754303440712,-500.0,0.00027397,2]
[377222756,1754303440724,-300.0,0.00027397,2]
[377222758,1754303440734,-1630.80992889,0.00027418,5]
[377222760,1754303440745,-9509.66163532,0.00027486,17]
[377222762,1754303440754,-920.58354343,0.00027599,2]
[377222764,1754303440764,-9417.63,0.000276,2]
[377222767,1754303440774,-235.89,0.00027753,2]
[377222768,1754303440784,-150.94,0.0002789,2]
[377222771,1754303440794,-150.94,0.0002789,2]
[377222773,1754303440803,-150.94,0.0002789,2]
[377222775,1754303440813,-150.94,0.0002789,2]
[377222777,1754303440823,-177328.39323316,0.000279,3]
[377222779,1754303440833,-312.69,0.00027968,7]
[377222781,1754303440843,-457.2201239,0.00028,10]
[377222783,1754303440852,-4000.0,0.00028085,4]
[377222785,1754303440863,-9509.66163532,0.00028176,18]
[377222787,1754303440872,-920.58354343,0.00028387,2]
[377222789,1754303440881,-185.5,0.000284,2]
[377222790,1754303440891,-513.90974954,0.00028414,2]
[377222792,1754303440901,-519.0,0.00028658,2]
[377222794,1754303440912,-265.84,0.00028685,2]
[377222796,1754303440921,-9509.66163532,0.00028866,19]
[377222798,1754303440931,-155.0,0.00028986,32]
[377222801,1754303440940,-1429.2144759,0.0002899,2]
[377222803,1754303440950,-920.58354343,0.00029174,2]
[377222805,1754303440959,-202.67,0.0002922,2]
[377222807,1754303440969,-500.0,0.0002929,2]
[377222809,1754303440979,-151.0,0.0002939,2]
[377222810,1754303440992,-518.13072332,0.0002939,2]
[377222812,1754303441001,-1876.16502643,0.0002939,2]
[377222814,1754303441013,-150.94,0.00029545,2]
[377222816,1754303441025,-9509.66163532,0.00029555,21]
[377222819,1754303441035,-6306.76903718,0.000299,2]
[377222821,1754303441046,-217.86016674,0.00029938,2]
[377222823,1754303441055,-312.69,0.00029957,30]
[377222825,1754303441065,-920.58354343,0.00029962,2]
[377222827,1754303441076,-9750.74784705,0.00029987,3]
[377222829,1754303441085,-232.34580842,0.0003,10]
[377222830,1754303441094,-799.999998,0.0003,2]
[377222832,1754303441104,-4567.82125064,0.0003,2]
[377222835,1754303441113,-2822.54978906,0.0003013,2]
[377222837,1754303441123,-200.0,0.00030137,5]
[377222838,1754303441133,-9509.66163532,0.00030245,22]
[377222840,1754303441142,-150.94,0.0003039,2]
[377222842,1754303441151,-4000.0,0.0003052,4]
[377222843,1754303441161,-6066.0,0.000307,2]
[377222845,1754303441170,-920.58354343,0.00030749,2]
[377222846,1754303441179,-3010.52659085,0.00030827,2]
[377222848,1754303441188,-3010.52659085,0.00030827,2]
[377222849,1754303441197,-9509.66163532,0.00030934,24]
[377222851,1754303441207,-1599.999997,0.0003121,2]
[377222852,1754303441216,-920.58354343,0.00031537,2]
[377222854,1754303441224,-5510.0,0.000316,3]
[377222855,1754303441234,-9509.66163532,0.00031624,25]
[377222857,1754303441243,-312.69,0.00031946,30]
[377222859,1754303441252,-9509.66163532,0.00032314,26]
[377222860,1754303441261,-920.58354343,0.00032325,2]
[377222862,1754303441270,-5510.0,0.000325,5]
[377222863,1754303441279,-150.94,0.00032526,2]
[377222865,1754303441289,-1429.2144759,0.00032536,2]
[377222866,1754303441298,-500.0,0.00032877,7]
[377222868,1754303441307,-500.0,0.00032877,7]
[377222870,1754303441317,-2821.29,0.000329,14]
[377222871,1754303441326,-62748.24,0.000329,14]
[377222873,1754303441335,-4000.0,0.00032955,4]
[377222875,1754303441344,-163.65,0.00032968,2]
[377222876,1754303441353,-440.13,0.00033,7]
[377222878,1754303441362,-1035.23925166,0.00033,120]
[377222879,1754303441371,-9509.66163532,0.00033003,28]
[377222881,1754303441380,-920.58354343,0.00033112,2]
[377222883,1754303441389,-314.93,0.00033158,2]
[377222884,1754303441398,-218.66,0.00033165,2]
[377222886,1754303441407,-500.0,0.0003337,2]
[377222887,1754303441417,-9509.66163532,0.00033693,29]
[377222889,1754303441426,-920.58354343,0.000339,2]
[377222891,1754303441435,-312.69,0.00033935,30]
[377222892,1754303441445,-500.78520876,0.00033973,5]
[377222894,1754303441454,-500.71859585,0.00033973,5]
[377222896,1754303441463,-500.0,0.00033973,5]
[377222898,1754303441472,-150.94,0.0003399,2]
[377222899,1754303441481,-150.94,0.0003399,2]
[377222901,1754303441491,-300.0,0.00033999,10]
[377222903,1754303441501,-78801.49148034,0.00034,2]
[377222904,1754303441510,-62748.24,0.00034,14]
[377222906,1754303441519,-9509.66163532,0.00034383,30]
[377222908,1754303441529,-704.64900493,0.00034385,2]
[377222909,1754303441538,-314.93,0.00034888,2]
[377222911,1754303441547,-4712.2661658,0.00035,4]
[377222913,1754303441556,-1005.10856602,0.00035,30]
[377222914,1754303441566,-9509.66163532,0.00035072,32]
[377222916,1754303441575,-2821.29,0.000351,14]
[377222918,1754303441585,-4000.0,0.0003539,4]
[377222920,1754303441594,-500.07379293,0.00035403,10]
[377222921,1754303441603,-150.94,0.00035752,2]
[377222923,1754303441613,-9509.66163532,0.00035762,33]
[377222925,1754303441622,-62748.24,0.000358,14]
[377222926,1754303441632,-1000.0,0.00035908,2]
[377222928,1754303441641,-312.69,0.00035925,60]
[377222930,1754303441650,-23900.0,0.00035979,2]
[377222931,1754303441659,-3000.0,0.00036,2]
[377222933,1754303441669,-1429.2144759,0.00036081,2]
[377222935,1754303441678,-503.80454262,0.00036391,15]
[377222936,1754303441688,-9509.66163532,0.00036452,34]
[377222938,1754303441697,-150.94,0.00036549,2]
[377222940,1754303441707,-22195.31,0.00036559,120]
[377222941,1754303441718,-211.425049,0.00036559,120]
[377222943,1754303441734,-12221.12,0.00036574,2]
[377222945,1754303441744,-440.13,0.000366,30]
[377222947,1754303441753,-666.0,0.00036604,3]
[377222948,1754303441763,-314.93,0.00036618,2]
[377222950,1754303441772,-151.0,0.00036707,15]
[377222952,1754303441781,-792.645,0.00036887,46]
[377222953,1754303441791,-200.0,0.00036887,2]
[377222955,1754303441801,-62748.24,0.000369,14]
[377222957,1754303441810,-188.33,0.00037065,2]
[377222959,1754303441820,-174.24,0.00037099,2]
[377222960,1754303441829,-2821.29,0.000371,14]
[377222962,1754303441838,-9509.66163532,0.00037141,36]
[377222964,1754303441848,-184.6,0.00037257,2]
[377222965,1754303441858,-250.0,0.00037277,2]
[377222967,1754303441869,-850.78912912,0.00037352,2]
[377222969,1754303441879,-150.8,0.0003739,2]
[377222971,1754303441889,-152.64,0.0003739,2]
[377222972,1754303441899,-157.2498226,0.00037399,2]
[377222974,1754303441908,-850.78912912,0.00037549,2]
[377222976,1754303441918,-150.94,0.0003779,2]
[377222978,1754303441927,-440.13,0.000378,30]
[377222979,1754303441937,-6800.0,0.000378,13]
[377222981,1754303441947,-614.27,0.00037816,30]
[377222983,1754303441957,-841.59890878,0.00037816,30]
[377222984,1754303441966,-4000.0,0.00037825,4]
[377222986,1754303441976,-9509.66163532,0.00037831,37]
[377222988,1754303441985,-235.89,0.0003788,2]
[377222990,1754303441996,-511.0,0.00037884,2]
[377222992,1754303442007,-510.99997,0.00037884,2]
[377222993,1754303442018,-3010.52659085,0.000379,2]
[377222995,1754303442027,-8500.0,0.000379,13]
[377222997,1754303442037,-312.69,0.00037914,60]
[377222998,1754303442046,-850.78912912,0.00037962,2]
[377223000,1754303442056,-150.94,0.0003798,2]
[377223002,1754303442066,-43083.95857721,0.0003799,2]
[377223003,1754303442075,-150.94,0.0003799,2]
[377223005,1754303442085,-35000.0,0.00038,2]
[377223007,1754303442094,-3000.0,0.00038,2]
[377223009,1754303442104,-850.78912912,0.00038132,2]
[377223011,1754303442114,-336.1393,0.00038256,120]
[377223013,1754303442124,-162.29243988,0.00038256,2]
[377223016,1754303442133,-160.0,0.00038333,2]
[377223017,1754303442143,-239.16088908,0.00038333,2]
[377223019,1754303442154,-151.0,0.00038333,2]
[377223020,1754303442165,-151.0,0.00038333,2]
[377223021,1754303442174,-151.0,0.00038333,2]
[377223022,1754303442184,-151.0,0.00038333,2]
[377223023,1754303442194,-151.0,0.00038333,2]
[377223024,1754303442203,-151.0,0.00038333,2]
[377223025,1754303442212,-151.0,0.00038333,2]
[377223026,1754303442221,-151.0,0.00038333,2]
[377223027,1754303442231,-151.0,0.00038333,2]
[377223028,1754303442240,-500.0,0.00038333,2]
[377223029,1754303442251,-151.0,0.00038333,2]
[377223030,1754303442260,-151.0,0.00038333,2]
[377223031,1754303442270,-151.0,0.00038333,2]
[377223032,1754303442279,-187.06,0.00038345,2]
[377223033,1754303442288,-187.06,0.00038345,2]
[377223034,1754303442297,-187.06,0.00038345,2]
[377223035,1754303442306,-187.06,0.00038345,2]
[377223036,1754303442315,-150.94,0.00038346,2]
[377223037,1754303442325,-178.26094196,0.00038346,2]
[377223039,1754303442334,-5339975.8012426,0.00038348,7]
[377223151,1754303443408,-10858.73169681,0.00038348,7]
[377223153,1754303443420,-833.82610066,0.00038348,7]
[377223160,1754303443482,-808.71829025,0.00038348,7]
[377223163,1754303443495,-496.59,0.00038348,7]
[377223165,1754303443506,-1085.09011866,0.00038348,7]
[377223167,1754303443518,-1818.44491036,0.00038348,7]
[377223169,1754303443529,-5576.14173329,0.00038348,7]
[377223174,1754303443563,-151.0,0.00034383,7]
[377223176,1754303443572,-2859.26621068,0.00038348,7]
[377223178,1754303443583,-2907.39694593,0.00038348,7]
[377223180,1754303443595,-553.02720048,0.00038348,7]
[377223490,1754303446647,-235.02941694,0.00038348,7]
[377223494,1754303446670,-28209.15414492,0.00038348,7]
[377223624,1754303448091,-513.90974954,0.00030793,15]
[377223626,1754303448101,-29.71504324,0.00038348,7]
[377223640,1754303448221,-407.34646794,0.00038348,7]
[377223642,1754303448232,-9196.2035406,0.00038348,7]
[377223644,1754303448243,-550.10755025,0.00038348,7]
[377223647,1754303448255,-1518.40198395,0.00038348,7]
[377223664,1754303448411,-764.63174101,0.00038348,7]
[377223667,1754303448423,-788.47508348,0.00038348,7]
[377223669,1754303448434,-296.80314603,0.00038348,7]
[377223671,1754303448445,-2493.1,0.00038348,7]
[377223673,1754303448456,-2040.4357807,0.00038348,7]
[377223676,1754303448467,-2081.80298648,0.00038348,7]
[377223678,1754303448478,-3571.93322392,0.00038348,7]
[377223680,1754303448489,-3236.1916139,0.00038348,7]
[377223682,1754303448502,-1165.13032531,0.00038348,7]
[377223695,1754303448612,-15303.61353488,0.00038348,7]
[377223697,1754303448623,-1005.2731,0.00038348,7]
[377223699,1754303448635,-3818.27439152,0.00038348,7]
[377223701,1754303448646,-6203.85,0.00038348,7]
[377223704,1754303448658,-650.0,0.00038348,7]
[377223749,1754303449120,185.99514543,0.00018999,2]
[377223871,1754303450346,-151.0,0.00034383,7]
[377223873,1754303450356,-1026.52866556,0.00038348,7]
[377223878,1754303450391,-1922.74781594,0.00038348,7]
[377223880,1754303450403,-6109.90270715,0.00038348,7]
[377223883,1754303450414,-5420.27219391,0.00038348,7]
[377223885,1754303450425,-4561.25,0.00038348,7]
[377223889,1754303450457,-4672.25558104,0.00038348,7]
[377223891,1754303450469,-1685.37016764,0.00038348,7]
[377223893,1754303450480,-1850.29736547,0.00038348,7]
[377223895,1754303450491,-3495.83514778,0.00038348,7]
[377223898,1754303450502,-12404.4514348,0.00038348,7]
[377223900,1754303450515,-1404.4,0.00038348,7]
[377223902,1754303450527,-6429.31301599,0.00038348,7]
[377223904,1754303450539,-11589.98019114,0.00038348,7]
[377223907,1754303450550,-263.258183,0.00038348,7]
[377223909,1754303450563,-536.02774424,0.00038348,7]
[377223911,1754303450575,-1104.89183922,0.00038348,7]
[377223953,1754303450972,15177.83207316,0.000189,2]
[377224546,1754303457356,225.0,0.00018619,2]
[377224721,1754303459132,335.10761347,0.00018999,2]
[377224723,1754303459164,276.01011182,0.00018999,2]
[377224726,1754303459195,500.0,0.00018999,2]
[377224729,1754303459234,357.47171059,0.00018999,2]
[377224903,1754303463974,500.0,0.00018999,2]
[377224904,1754303464084,500.0,0.00018999,2]
[377224905,1754303464146,500.0,0.00018999,2]
[377224906,1754303464216,500.0,0.00018999,2]
[377224966,1754303465284,500.0,0.00018999,2]
[377224970,1754303465324,500.0,0.00018999,2]
[377224976,1754303465372,500.0,0.00018999,2]
[377224983,1754303465439,500.0,0.00018999,2]
[377224989,1754303465487,500.0,0.00018999,2]
[377224995,1754303465532,500.0,0.00018999,2]
[377224997,1754303465573,500.0,0.00018999,2]
[377224998,1754303465611,500.0,0.00018999,2]
[377224999,1754303465652,500.0,0.00018999,2]
[377225000,1754303465698,280.92528442,0.00018999,2]
[377225001,1754303465767,500.0,0.00018999,2]
[377225002,1754303465807,500.0,0.00018999,2]
[377225003,1754303465865,500.0,0.00018999,2]
[377225004,1754303465930,500.0,0.00018999,2]
[377225005,1754303466006,500.0,0.00018999,2]
[377225006,1754303510347,1147.30901836,0.00018,2]
[377225008,1754303583198,-279.54998735,0.00021049,2]
[377225018,1754303723664,250.0,0.00015,2]
[377225019,1754303724662,300.0,0.00017,2]
[377225037,1754303859454,-214.26445912,0.00019618,3]
[377225045,1754304083236,208.125,0.00018794,2]
[377225050,1754304331827,2212.12,4.2e-05,2]
[377225196,1754304506326,155.00037986,0.00030136,120]
[377225197,1754304511939,192.515625,0.00018794,2]
[377225200,1754304569832,-384.2156549,0.00019178,2]
[377225201,1754304569854,-151.0,0.00019178,2]
[377225202,1754304569875,-166.66666667,0.00019518,2]
[377225203,1754304569896,-451.73554088,0.00019618,3]
[377225204,1754304569917,-217.86016674,0.00019726,2]
[377225205,1754304569937,-200.0,0.00021918,2]
[377225206,1754304569958,-500.0,0.00022352,2]
[377225207,1754304569978,-500.0,0.00022352,2]
[377225208,1754304569999,-193.596875,0.00022352,2]
[377225209,1754304570021,-500.0,0.00022352,2]
[377225210,1754304570042,-295.73125,0.00022352,2]
[377225211,1754304570063,-214.26445912,0.00022411,7]
[377225212,1754304570084,-160.0,0.00023,3]
[377225213,1754304570105,-1323.97,0.00023585,2]
[377225214,1754304570126,-196.14,0.00024091,2]
[377225215,1754304570150,-500.0,0.0002474,2]
[377225216,1754304570171,-1323.97,0.00025315,2]
[377225217,1754304570193,-600.0,0.00026642,2]
[377225218,1754304570216,-600.0,0.00026642,2]
[377225219,1754304570237,-188.71,0.00026642,2]
[377225220,1754304570259,-600.0,0.00026642,2]
[377225221,1754304570281,-600.0,0.00026642,2]
[377225222,1754304570305,-600.0,0.00026642,2]
[377225223,1754304570327,-571.27,0.00026642,2]
[377225224,1754304570349,-450.2,0.00026712,2]
[377225225,1754304570379,-3510.66938669,0.000269,16]
[377225226,1754304572291,-457.2201239,0.00027,7]
[377225227,1754304572315,-1323.97,0.00027046,2]
[377225228,1754304572338,-226.8,0.00027397,2]
[377225229,1754304572699,-300.0,0.00027399,2]
[377225230,1754304572728,-1200.0,0.00027399,2]
[377225231,1754304572749,-155.69583998,0.000274,2]
[377225232,1754304572770,-155.69583994,0.000274,2]
[377225233,1754304572792,-155.69583994,0.000274,2]
[377225234,1754304572814,-155.69583994,0.000274,2]
[377225235,1754304572836,-155.69583994,0.000274,2]
[377225236,1754304572858,-155.69583994,0.000274,2]
[377225237,1754304572879,-155.69583994,0.000274,2]
[377225238,1754304572899,-155.69583994,0.000274,2]
[377225239,1754304572921,-155.69583994,0.000274,2]
[377225240,1754304572942,-155.69583994,0.000274,2]
[377225241,1754304572963,-155.69583994,0.000274,2]
[377225242,1754304572983,-155.69583994,0.000274,2]
[377225243,1754304573006,-197.8,0.00027505,3]
[377225244,1754304573036,-6066.0,0.000277,2]
[377225245,1754304573065,-163.65,0.00027891,2]
[377225246,1754304573088,-200.0,0.00028432,2]
[377225247,1754304573111,-2996.20979678,0.000285,3]
[377225248,1754304573490,-208.46,0.00022,2]
[377225249,1754304573515,-231.01875,0.00022352,2]
[377225250,1754304573545,-2513.79020322,0.000285,3]
[377225251,1754304573570,-610.0,0.00028536,2]
[377225252,1754304573594,-226.8,0.00028767,2]
[377225253,1754304573621,-1323.97,0.00028776,2]
[377225254,1754304573646,-1876.16502643,0.0002939,2]
[377225255,1754304573674,-518.13072332,0.0002939,2]
[377225256,1754304573700,-5510.0,0.000294,5]
[377225257,1754304573723,-849.35,0.00029723,2]
[377225258,1754304573749,-865.095,0.00029811,24]
[377225259,1754304573772,-267.22029703,0.00030053,2]
[377225260,1754304574699,-154.0125,0.00022352,2]
[377225261,1754304574723,-208.46,0.00023795,2]
[377225262,1754304574752,-208.46,0.00025589,7]
[377225263,1754304574775,-208.46,0.00027383,7]
[377225264,1754304574801,-208.46,0.00029178,30]
[377225265,1754304574825,-11953.89970297,0.00030053,2]
[377225266,1754304574848,-768.77,0.00030114,2]
[377225267,1754304574871,-1000.0,0.00030114,2]
[377225268,1754304574895,-250.0,0.00030114,2]
[377225269,1754304574920,-39.47779703,0.00030136,2]
[377225270,1754304576886,-155.69583994,0.000274,2]
[377225271,1754304576908,-187.32220297,0.00030136,2]
[377225272,1754304576935,-500.0,0.00030438,2]
[377225273,1754304576956,-2921.09,0.00030492,2]
[377225274,1754304576979,-1323.97,0.00030506,2]
[377225275,1754304577001,-208.46,0.00030973,30]
[377225276,1754304586061,155.69583994,0.000274,2]
[377225277,1754304591377,155.69583994,0.000274,2]
[377225278,1754304596110,155.69583994,0.000274,2]
[377225279,1754304611050,155.69583994,0.000274,2]
[377225280,1754304613597,-239.16088908,0.00031081,2]
[377225281,1754304613620,-151.0,0.00031081,2]
[377225282,1754304613643,-151.0,0.00031081,2]
[377225283,1754304613665,-151.0,0.00031081,2]
[377225284,1754304613687,-151.0,0.00031081,2]
[377225285,1754304613710,-151.0,0.00031081,2]
[377225286,1754304613733,-151.0,0.00031081,2]
[377225287,1754304613755,-151.0,0.00031081,2]
[377225288,1754304613776,-151.0,0.00031081,2]
[377225289,1754304613798,-151.0,0.00031081,2]
[377225290,1754304613820,-151.0,0.00031081,2]
[377225291,1754304613843,-151.0,0.00031081,2]
[377225292,1754304613865,-151.0,0.00031081,2]
[377225293,1754304613886,-500.0,0.00031081,2]
[377225294,1754304613907,-500.0,0.00031136,2]
[377225295,1754304613929,-500.0,0.00031191,2]
[377225296,1754304613950,-500.0,0.00031246,2]
[377225297,1754304613971,-500.0,0.00031301,2]
[377225298,1754304613992,-500.0,0.00031356,2]
[377225299,1754304614014,-500.0,0.00031411,2]
[377225300,1754304614035,-500.0,0.00031466,2]
[377225301,1754304614056,-226.8,0.00031506,2]
[377225302,1754304614077,-500.0,0.00031521,2]
[377225303,1754304614098,-500.0,0.00031576,2]
[377225304,1754304614120,-500.0,0.00031631,2]
[377225305,1754304614141,-185.09,0.00031664,91]
[377225306,1754304614167,-175.0,0.00031713,7]
[377225307,1754304614188,-1044.13,0.00031717,2]
[377225308,1754304614211,-5817.81911092,0.0003185,2]
[377225309,1754304614735,-2016.10165387,0.0003185,2]
[377225310,1754304614762,-5602.31999348,0.000319,25]
[377225311,1754304614783,-7381.57835265,0.0003195,120]
[377225312,1754304616557,155.69583994,0.000274,2]
[377225313,1754304616586,-15000.0,0.0003195,120]
[377225314,1754304622016,2511.4248042,0.00031,7]
[377225317,1754304632177,-923.4228,0.0003195,120]
[377225318,1754304632190,-1641.10884735,0.0003195,120]
[377225319,1754304632200,-184.6,0.00032026,2]
[377225320,1754304632210,-1000.0,0.00032041,30]
[377225321,1754304632220,-264.4,0.00032073,2]
[377225326,1754304632587,-5602.31999347,0.00032176,26]
[377225328,1754304632598,-2122.52,0.00032179,120]
[377225330,1754304632608,-200.0,0.00032209,2]
[377225334,1754304632618,-1323.97,0.00032237,2]
[377225336,1754304632628,-5752.99099318,0.00032243,2]
[377225340,1754304632656,-18147.00900682,0.00032243,2]
[377225342,1754304632666,-11882.71100729,0.00032258,2]
[377225343,1754304632678,-1360.94899271,0.00032258,2]
[377225344,1754304632688,-5000.0,0.00032276,2]
[377225345,1754304632697,-197.8,0.00032276,5]
[377225346,1754304632706,-188.33,0.00032419,2]
[377225347,1754304632716,-250.03,0.00032447,2]
[377225348,1754304632726,-1708.55562413,0.00032452,26]
[377225349,1754304632739,-322.38535319,0.00032452,26]
[377225350,1754304632751,-308.33799998,0.00032452,26]
[377225351,1754304632762,-316.27949686,0.00032452,26]
[377225353,1754304632790,-2946.76151931,0.00032452,26]
[377225355,1754304632799,-300.0,0.0003247,2]
[377225357,1754304632809,-82.68890966,0.00032537,2]
[377225360,1754304632833,-67.31109034,0.00032537,2]
[377225362,1754304632843,-6161.32856889,0.00032623,2]
[377225409,1754304638842,-1672.59219582,0.00032623,2]
[377225410,1754304638853,-150.0,0.00032632,2]
[377225411,1754304638863,-5602.31999347,0.00032728,27]
[377225412,1754304638873,-185.31,0.00032904,30]
[377225413,1754304638883,-5602.31999347,0.00033003,28]
[377225414,1754304638893,-5602.31999347,0.00033279,28]
[377225415,1754304638904,-504.0,0.00033306,2]
[377225416,1754304638914,-7833.92076471,0.00033395,2]
[377225417,1754304638923,-714.9344,0.00033399,2]
[377225418,1754304638933,-180.53,0.00033409,2]
[377225419,1754304638942,-1000.0,0.00033451,2]
[377225420,1754304638951,-5602.31999347,0.00033555,29]
[377225421,1754304638961,-151.0033607,0.0003382,2]
[377225422,1754304638971,-5602.31999347,0.00033831,29]
[377225423,1754304638981,-1000.0,0.00033878,2]
[377225424,1754304638992,-1323.97,0.00033967,2]
[377225425,1754304639001,-1956.5,0.00034031,2]
[377225426,1754304639011,-5602.31999347,0.00034107,30]
[377225427,1754304639021,-7833.92076471,0.00034168,2]
[377225428,1754304639031,-167.59,0.00034322,2]
[377225429,1754304639040,-5602.31999347,0.00034383,30]
[377225430,1754304639050,-235.489405,0.00034383,7]
[377225431,1754304639059,-235.489405,0.00034383,7]
[377225432,1754304639068,-160.0,0.00034414,2]
[377225433,1754304639078,-504.0,0.00034418,4]
[377225434,1754304639088,-600.0,0.00034605,2]
[377225435,1754304639098,-600.0,0.00034605,2]
[377225436,1754304639107,-600.0,0.00034605,2]
[377225437,1754304639118,-600.0,0.00034605,2]
[377225438,1754304639127,-577.02,0.00034605,2]
[377225439,1754304639137,-5602.31999347,0.00034659,31]
[377225440,1754304639146,-5602.31999347,0.00034934,31]
[377225441,1754304639155,-7833.92076471,0.00034941,2]
[377225442,1754304639167,-1553.1224872,0.00035,8]
[377225443,1754304639178,-5602.31999347,0.0003521,32]
[377225444,1754304639188,-500.0,0.00035233,2]
[377225445,1754304639197,-636.0,0.00035452,2]
[377225446,1754304639207,-5602.31999347,0.00035486,32]
[377225447,1754304639218,-504.0,0.0003553,6]
[377225448,1754304639228,-188.71,0.00035682,2]
[377225449,1754304639238,-1323.97,0.00035697,2]
[377225450,1754304639248,-7833.92076471,0.00035713,2]
[377225451,1754304639258,-1956.5,0.00035733,2]
[377225452,1754304639267,-5602.31999347,0.00035762,33]
[377225453,1754304639277,-5602.31999347,0.00036038,34]
[377225454,1754304639287,-196.14,0.00036137,2]
[377225455,1754304639296,-5602.31999347,0.00036314,34]
[377225456,1754304639306,-7833.92076471,0.00036486,2]
[377225457,1754304639315,-269.73,0.00036527,120]
[377225458,1754304639325,-5602.31999347,0.0003659,35]
[377225459,1754304639334,-504.0,0.00036642,9]
[377225460,1754304639344,-477.99253149,0.00036708,2]
[377225461,1754304639354,-2718.33892269,0.00036812,120]
[377225462,1754304639364,-184.6,0.0003683,2]
[377225463,1754304639374,-5602.31999347,0.00036866,35]
[377225464,1754304639383,-197.8,0.00037047,15]
[377225465,1754304639393,-152.0,0.00037082,3]
[377225466,1754304639403,-5602.31999347,0.00037141,36]
[377225467,1754304639413,-477.99253143,0.00037164,2]
[377225468,1754304639423,-150.0,0.00037205,2]
[377225469,1754304639433,-188.71,0.00037257,2]
[377225470,1754304639443,-7833.92076471,0.00037259,2]
[377225471,1754304639454,-529.42145676,0.00037332,2]
[377225472,1754304639463,-5602.31999347,0.00037417,36]